Cogmind - Beta 9.3 @@@ ROGUE MODE // 2020.01.16 @ 23:02:50 // Winter2019/RPGLIKE Player: badjay Result: Self-destructed Performance ------------- Evolutions (1) 500 Regions Visited (2) 400 Robots Destroyed (11) 55 Value Destroyed (357) 357 Prototype IDs (4) 80 Alien Tech Used (0) 0 Bonus (0) 0 TOTAL SCORE: 1392 Bonus ------- None Cogmind --------- Core Integrity 111/600 Matter 300/300 Energy 100/100 System Corruption 0% Temperature Cool (0) Movement Core (50) Location -9/Materials Parts ------- > --- POWER (1) -------- (None) > --- PROPULSION (1) --- (None) > --- UTILITY (1) ------ (None) > --- WEAPON (2) ------- Hammer Hammer > --- INVENTORY (0) ---- (None) Peak State ------------ > --- POWER ------------ (None) > --- PROPULSION ------- (None) > --- UTILITY ---------- (None) > --- WEAPON ----------- Hammer Hammer > --- INVENTORY -------- (None) [Rating: 2] Favorites ----------- Power None Propulsion None Utility None Weapon Hammer Impact Weapon Hammer Build | -11 -10 -9 ------- Run | Scr Mat Mat Slots Evolved 1 | . 1 . Power . | . . . Propulsion . | . . . Utility . | . . . Weapon 1 | . 1 . Parts Attached 2 | . 2 . Power . | . . . Engine . | . . . Core . | . . . Reactor . | . . . Propulsion . | . . . Treads . | . . . Leg . | . . . Wheel . | . . . Hover . | . . . Flight . | . . . Utility . | . . . Device . | . . . Storage . | . . . Processor . | . . . Hackware . | . . . Protection . | . . . Artifact . | . . . Weapon 2 | . 2 . Energy Gun . | . . . Energy Cannon . | . . . Ballistic Gun . | . . . Ballistic Cannon . | . . . Launcher . | . . . Special Weapon . | . . . Impact Weapon 2 | . 2 . Slashing Weapon . | . . . Piercing Weapon . | . . . Special Melee Weapon . | . . . Unidentified Prototypes . | . . . Parts Lost . | . . . Power . | . . . Propulsion . | . . . Utility . | . . . Weapon . | . . . Highest Loss Streak . | . . . Average Slot Usage (%) 36 | . 34 40 Impact Weapon 36 | . 34 40 Naked Turns 42 | . 42 . Heaviest Build 4 | . 4 4 Greatest Support 8 | 3 8 8 Greatest Overweight (x) 1 | . 1 . Average Overweight (x) . | . . . Largest Inventory Capacity . | . . . Average Capacity . | . . . Most Carried . | . . . Average Carried . | . . . Final Capacity . | . . . Final Carried . | . . . Class Distribution -------------------- 95% | Hacker-Mutant 4% | Mutant Dominant Class ---------------- Hacker-Mutant | -10/Materials Hacker-Mutant | -9/Materials Resources | -11 -10 -9 ----------- Run | Scr Mat Mat Matter Collected 220 | 200 20 . Remotely . | . . . Salvage Created 453 | . 316 137 Parts 18 | . 8 10 Haulers Intercepted 1 | . 1 . Recyclers Shooed 1 | . 1 . Parts Field Recycled . | . . . Retrieved Matter . | . . . Parts Self-Destructed . | . . . Prevented . | . . . Kills | -11 -10 -9 ------- Run | Scr Mat Mat Combat Hostiles Destroyed 9 | . 6 3 Melee 5 | . 3 2 Classes Destroyed 4 | . 3 1 Worker 1 | . 1 . Hauler 1 | . 1 . Grunt 7 | . 6 1 Sentry 2 | . . 2 Best Kill Streak 3 | . 3 1 Combat Bots Only 2 | . 2 1 Max Kills in Single Turn 1 | . 1 1 Gunslinging . | . . . Exploded . | . . . Melee 1 | . 1 1 Uniques/NPCs Destroyed . | . . . Combat | -11 -10 -9 -------- Run | Scr Mat Mat Damage Taken 848 | . 577 271 Core 813 | . 550 263 Absorbed by Shields . | . . . Redirected to Core 117 | . 89 28 Core Remaining (%) 73 | 100 46 . Volleys Fired . | . . . Largest . | . . . Hottest . | . . . Shots Fired . | . . . Gun . | . . . Cannon . | . . . Launcher . | . . . Special . | . . . Kinetic . | . . . Thermal . | . . . Explosive . | . . . Electromagnetic . | . . . Robot Hit Streak . | . . . Robot Miss Streak . | . . . Penetration Max . | . . . Secondary Targets . | . . . Shots Hit Robots 53 | . 41 12 Core Hits 10 | . 7 3 Critical Hits . | . . . Critical Kills . | . . . Critical Parts Destroyed . | . . . Melee Attacks 67 | . 51 16 Impact 67 | . 51 16 Slashing . | . . . Piercing . | . . . Sneak Attacks 3 | . 3 . Combat Hostiles . | . . . Follow-up Attacks 9 | . 8 1 Damage Inflicted 1033 | . 825 208 Guns . | . . . Cannons . | . . . Explosions . | . . . Melee 1026 | . 818 208 Ramming 7 | . 7 . Kinetic . | . . . Thermal . | . . . Explosive . | . . . Electromagnetic . | . . . Impact 1026 | . 818 208 Slashing . | . . . Piercing . | . . . Highest Corruption 2 | . 2 . Average Corruption 1 | . 1 . Corruption Purged . | . . . Effects 5 | . 5 . Heat Flow Errors 1 | . 1 . Energy Discharges 1 | . 1 . Data Loss (minor) 1 | . 1 . Targeting Errors 2 | . 2 . Overload Shots . | . . . Overflow Damage 115 | . 95 20 Projectiles . | . . . Explosions . | . . . Melee 115 | . 95 20 Knockbacks 5 | . 3 2 Impact 5 | . 3 2 Kinetic . | . . . Secondary . | . . . Self-Inflicted Damage 3 | . 3 . Shots . | . . . Rammed 2 | . 2 . Targets Rammed 2 | . 2 . Kicked . | . . . Crushed . | . . . Highest Temperature 159 | . 159 . Average Temperature 84 | . 84 . Received Heat Transfer 411 | . 321 90 Siege Activations . | . . . Robots Corrupted . | . . . Combat Hostiles . | . . . Parts Fried 7 | . 4 3 Impact Corruptions 8 | . 7 1 Robots Melted . | . . . Combat Hostiles . | . . . Parts Melted . | . . . Heat Transferred . | . . . Parts Sabotaged . | . . . Parts Stolen . | . . . Parts Stripped . | . . . Power Chain Reactions . | . . . Missiles Intercepted . | . . . Alert | -11 -10 -9 ------- Run | Scr Mat Mat Peak Influence 263 | . 233 263 Average Influence 126 | . 103 195 Maximum Alert Level 1 | . 1 1 Low Security (%) 73 | 100 79 56 Level 1 26 | . 20 43 Level 2 . | . . . Level 3 . | . . . Level 4 . | . . . Level 5 . | . . . High Security . | . . . Max Security . | . . . Squads Dispatched 3 | . 2 1 Investigation . | . . . Extermination . | . . . Reinforcement 3 | . 2 1 Assault . | . . . Garrison . | . . . Intercept . | . . . Construction Impeded . | . . . Haulers Reinforced . | . . . Stealth | -11 -10 -9 --------- Run | Scr Mat Mat Distress Signals 1 | . 1 . Communications Jammed . | . . . Distress Signals . | . . . Times Spotted 23 | . 11 12 Peak Tracking Total 9 | . 4 9 Tactical Retreats . | . . . Traps | -11 -10 -9 ------- Run | Scr Mat Mat Traps Triggered . | . . . Indirectly . | . . . Trap Hack Attempts . | . . . Triggered . | . . . Disarmed . | . . . Reprogrammed . | . . . Reused . | . . . Traps Extracted . | . . . Installed . | . . . Triggered . | . . . Machines | -11 -10 -9 ---------- Run | Scr Mat Mat Machines Disabled . | . . . Max in Single Turn . | . . . Machines Sabotaged . | . . . Garrisons Compromised . | . . . Overloaded Fab Kills . | . . . Fab Network Shutdowns . | . . . Hacking | -11 -10 -9 --------- Run | Scr Mat Mat Machines Accessed 5 | . 3 2 Terminals 5 | . 3 2 Fabricators . | . . . Repair Stations . | . . . Recycling Units . | . . . Scanalyzers . | . . . Garrison Access . | . . . Total Hacks 30 | . 24 6 Successful 17 | . 15 2 Failed 13 | . 9 4 Catastrophic 4 | . 3 1 Database Lockouts . | . . . Manual 27 | . 22 5 Terminals 30 | . 24 6 Fabricators . | . . . Repair Stations . | . . . Recycling Units . | . . . Scanalyzers . | . . . Garrison Access . | . . . Terminal Hacks 9 | . 7 2 Prototype ID Bank 3 | . 3 . Level Access Points 2 | . 1 1 Branch Access Points 2 | . 1 1 Terminal Index 1 | . 1 . Registered Components 1 | . 1 . Fabricator Hacks . | . . . Repair Station Hacks . | . . . Recycling Unit Hacks . | . . . Scanalyzer . | . . . Garrison Access Hacks . | . . . Unauthorized Hacks 18 | . 18 . Terminals 8 | . 8 . Track 3 | . 3 . Botnet 3 | . 3 . Disrupt 1 | . 1 . Operators 1 | . 1 . Fabricators . | . . . Repair Stations . | . . . Recycling Units . | . . . Scanalyzers . | . . . Garrison Access . | . . . Data Cores Recovered . | . . . Used . | . . . Hacking Detections 4 | . 3 1 Full Trace Events 1 | . 1 . Feedback Events 1 | . 1 . Corruption 1 | . 1 . Feedback Blocked . | . . . Robot Schematics Acquired . | . . . Robots Built . | . . . Matter . | . . . Time . | . . . Total Robot Build Rating . | . . . Part Schematics Acquired . | . . . Parts Built . | . . . Matter . | . . . Time . | . . . Total Part Build Rating . | . . . Parts Repaired . | . . . Time . | . . . Parts Recycled . | . . . Recycled Matter . | . . . Retrieved Matter . | . . . Retrieved Components . | . . . Parts Scanalyzed . | . . . Part Schematics Acquired . | . . . Parts Damaged . | . . . Bothacking | -11 -10 -9 ------------ Run | Scr Mat Mat Used RIF Installer . | . . . Robots Hacked . | . . . Non-combat . | . . . Combat . | . . . Robot Hacks Applied . | . . . Relay Couplers Released . | . . . Robots Rewired . | . . . Allies Hacked . | . . . Hacks Repelled . | . . . Allies | -11 -10 -9 -------- Run | Scr Mat Mat Total Allies . | . . . Largest Group . | . . . Highest-Rated Group . | . . . Highest-Rated Ally . | . . . Total Orders . | . . . Ally Attacks . | . . . Total Damage . | . . . Kills . | . . . Allies Corrupted . | . . . Allies Melted . | . . . Intel | -11 -10 -9 ------- Run | Scr Mat Mat Robot Analysis Total . | . . . Derelict Logs Recovered . | . . . Drone Launches . | . . . Drone Recoveries . | . . . Exploration | -11 -10 -9 ------------- Run | Scr Mat Mat Turns Passed 421 | 13 286 122 Spaces Moved 440 | 27 271 142 Core 440 | 27 271 142 Treads . | . . . Legs . | . . . Wheels . | . . . Hover . | . . . Flight . | . . . Fastest Speed 50 | 50 50 50 Average Speed 50 | 50 50 50 Slowest Speed 100 | 50 100 50 Overloaded Moves . | . . . Propulsion Burnouts . | . . . Robots Hopped . | . . . Cave-ins Triggered . | . . . Exploration Rate (%) 19 | 3 37 17 Regions Visited 2 Branch Regions . Pre-discovered Areas . | . . . Known Exits Taken 1 | . 1 . Unknown Exits Taken 1 | 1 . . Scrap Searched . | . . . Spaces Dug . | . . . Terrain Destroyed . | . . . Melee . | . . . Projectile . | . . . AOE . | . . . Actions | -11 -10 -9 --------- Run | Scr Mat Mat Total 552 | 26 354 172 Wait 42 | . 29 13 Move 438 | 26 270 142 Hop . | . . . Pick Up . | . . . Fast Attach 2 | . 2 . Attach . | . . . Detach . | . . . Swap . | . . . Drop . | . . . Fire . | . . . Melee 54 | . 41 13 Ram 2 | . 2 . Kick . | . . . Crush . | . . . Escape Stasis . | . . . Rewire . | . . . Trap . | . . . Miscellaneous 14 | . 10 4 Route ------- -11/Scrapyard -10/Materials (discovered 4 exits: *Mat x3 / Min) -9/Materials (discovered 4 exits: Mat x3 / Min) History --------- Turn | Location | Event 8 | -11/Scrapyard | Discovered new exit (range 12) 14 | -11/Scrapyard | Entered Materials 28 | -10/Materials | Identified exit to Mines 56 | -10/Materials | Upgraded with Weapon slot (x1) 134 | -10/Materials | Identified exit to Materials 199 | -10/Materials | Core integrity fell below 50% 300 | -10/Materials | Entered another Materials area 301 | -9/Materials | Core integrity fell below 50% 302 | -9/Materials | Reached level 2 311 | -9/Materials | Identified exit to Mines 326 | -9/Materials | Build established: Hacker-Mutant 399 | -9/Materials | Identified exit to Materials 422 | -9/Materials | Core integrity fell below 20% 422 | -9/Materials | Self-destructed Last Messages --------------- 00375_ K-01 Serf collects debris. 00377_ R-06 Scavenger collects Imp. Ion Engine. 00378_ Hammer follow-up attack on G-34 Mercenary. 00378_ Destroyed Ion Engine. 00378_ G-34 Mercenary system corrupted by crushing effect. 00379_ G-34 Mercenary system terminally corrupted. 00379_ Sml. Laser fried. 00379_ Aluminum Leg fried. 00379_ K-01 Serf collects debris. 00395_ R-06 Scavenger inserts Beam Rifle into recycling unit. 00399_ Connecting with Terminal... >>Access(Main) Found 3 level access points to Materials: (85,45) (15,52) (45,87) Map updated. 00401_ R-06 Scavenger inserts Lgt. Armor Plating into recycling unit. 00403_ K-01 Serf collects debris. 00404_ R-06 Scavenger inserts Imp. Ion Engine into recycling unit. Map ----- +----------------------------------------------------+ | ??????????????????????????????? #??????# | | ??????????????????????????????? #??????# | | ??????????????????????????????# #??????#### | | ??????????????????????????????# #?????????? | | ??????????????????????????????# ########??? | | ??????????????????????????????# ## #### | | ??????????????????????????????# ## ! | | ?????????????????????????????## ## = ! | | ?????????????????????????????# # [ | | ?????????????????????????????# # #### | | ?????????????????????????????# T ## ## ## | | ?????????????????????????????#] ## # | | ?????????????????????????????## ###% # | | ??????????????######??????????# #?# # | | ??????????????? ??????????# #?# # | | ??????????????? ??????????# #?# */ "" | | ????????????????s ??????????# #?# %# "" | | ???????????????? +?????????# #?# =# "" | | ????????????????# #?##+###### ### # | | ????????????????# #?# # "" | | ????????????????# #?# # "" | | ????????????????# #?# /!! # "" | | ????????????????+ #?##### /!! #! | | ????????????????# ####### !!! ##### | | ????????????????# ###?? | | ????????????????# @ "Y" #?? | | ????????????????# s""" #?? | | ????????????????# s #?? | | ????????????????# s s #?? | | ????????????????#################### #?? | | ?????????????????????????????????? #?? | | ???????????????????????????????? | | ?????????????????????????????? | | ???????????????????????????? | | ???????????????